bitfinex-derivatives/quotes_SOLF0:USTF0_20241107
["timestamp","ask_amount","ask_price","bid_price","bid_amount"]
[1730941326265,1.2417,187.01,186.91,10.25463074]
[1730941326661,3.9134,187.01,186.91,10.25463074]
[1730941326864,1.2114,187.02,186.95,10.25463074]
[1730941327065,1.2114,187.02,186.98,10.25463074]
[1730941327066,3.0,187.02,186.98,10.25463074]
[1730941327459,3.0,187.02,187.0,10.25463074]
[1730941328062,3.0,187.02,187.01,2.6716]
[1730941328465,3.0,187.02,186.91,4.3098]
[1730941328659,3.0,187.02,186.97,2.6722]
[1730941329071,3.0,187.02,186.95,10.25463074]
[1730941329964,5.6715,187.02,186.95,10.25463074]
[1730941330169,3.0,187.02,186.95,10.25463074]
[1730941330367,3.0,187.02,186.98,2.672]
[1730941330569,3.0,187.02,186.95,10.25463074]
[1730941330766,3.0,187.02,186.91,4.3098]
[1730941330767,3.0,187.02,186.93,10.25463074]
[1730941330975,10.25463074,187.01,186.93,10.25463074]
[1730941331174,12.77273074,187.01,186.9,10.25463074]
[1730941331571,2.672,186.98,186.93,2.6726]
[1730941331775,3.0,186.97,186.93,2.6726]
[1730941332271,3.0,186.97,186.94,2.6726]
[1730941332472,3.0,186.97,186.9,10.25463074]
[1730941332774,5.6719,186.99,186.93,10.25463074]
[1730941333273,5.6719,186.99,186.95,2.6724]
[1730941333477,2.672,186.98,186.93,10.25463074]
[1730941333868,3.0,186.99,186.95,2.6724]
[1730941334073,3.0,186.99,186.93,10.25463074]
[1730941334976,3.0,186.99,186.96,2.6723]
[1730941335191,3.0,186.99,186.95,10.25463074]
[1730941335476,2.5181,187.01,186.95,10.25463074]
[1730941335678,3.0,187.0,186.95,10.25463074]
[1730941336279,3.0,187.04,186.99,10.25463074]
[1730941336478,3.0,187.05,186.99,10.25463074]
[1730941336876,3.0,187.05,186.91,10.25463074]
[1730941337185,3.0,187.08,187.02,10.25463074]
[1730941337875,3.0,187.08,187.04,2.6712]
[1730941338288,1.3326,187.11,187.02,10.25463074]
[1730941338478,3.16,187.1,187.04,10.25463074]
[1730941338782,4.0028,187.11,187.04,10.25463074]
[1730941338987,3.16,187.1,187.04,10.25463074]
[1730941340383,3.16,187.1,187.07,2.6707]
[1730941340585,3.16,187.1,187.04,10.25463074]
[1730941341377,3.16,187.1,187.06,2.6708]
[1730941341576,3.16,187.1,187.04,10.25463074]
[1730941342291,5.8304,187.1,187.04,10.25463074]
[1730941342479,5.8304,187.1,186.98,2.6129]
[1730941342480,3.16,187.1,187.02,10.25463074]
[1730941343282,2.6706,187.09,187.04,2.671]
[1730941343589,3.16,187.1,187.02,10.25463074]
[1730941343984,13.41463074,187.1,186.99,10.25463074]
[1730941344376,1.2801,187.09,186.99,10.25463074]
[1730941344581,2.6711,187.05,187.0,2.6717]
[1730941344781,3.16,187.05,186.97,11.51263074]
[1730941344984,3.16,187.05,186.97,10.25463074]
[1730941345187,13.41463074,187.05,186.97,10.25463074]
[1730941345486,13.41463074,187.05,186.95,10.25463074]
[1730941345889,2.6716,187.02,186.97,2.6722]
[1730941346301,13.41463074,187.05,186.97,2.6722]
[1730941346590,13.41463074,187.05,186.95,10.25463074]
[1730941346789,10.25463074,187.03,186.92,11.53383074]
[1730941346977,2.6718,187.0,186.95,2.6723]
[1730941347180,5.8318,187.0,186.95,2.6723]
[1730941347385,3.16,187.0,186.95,2.6723]
[1730941348383,5.8318,187.0,186.95,2.6723]
[1730941348583,3.16,187.0,186.95,2.6723]
[1730941348779,13.41463074,187.0,186.94,2.6726]
[1730941348984,13.41463074,187.0,186.92,10.25463074]
[1730941349489,2.672,186.98,186.93,2.6727]
[1730941350985,13.41463074,187.0,186.92,12.92753074]
[1730941350986,2.6722,186.97,186.92,12.92753074]
[1730941351188,13.41463074,187.0,186.92,10.25463074]
[1730941351189,3.16,187.0,186.92,10.25463074]
[1730941351694,3.16,187.0,186.94,10.25463074]
[1730941352196,3.16,187.0,186.98,2.6719]
[1730941355091,3.16,187.0,186.94,10.25463074]
[1730941355486,3.16,187.0,186.98,2.672]
[1730941356388,3.16,187.0,186.87,4.4678]
[1730941356695,5.8319,187.0,186.95,2.6724]
[1730941356891,13.41463074,187.0,186.91,10.25463074]
[1730941358292,3.16,187.0,186.93,10.25463074]
[1730941358784,3.16,187.0,186.96,10.25463074]
[1730941359195,3.16,187.0,186.97,2.6721]
[1730941359496,3.16,187.0,186.96,10.25463074]
[1730941359892,3.16,187.0,186.97,2.672]
[1730941360188,3.16,187.0,186.96,10.25463074]
[1730941360396,3.16,187.0,186.97,2.6721]
[1730941360986,3.16,187.0,186.98,2.672]
[1730941361585,3.16,187.0,186.97,2.672]
[1730941362091,3.16,187.0,186.94,10.25463074]
[1730941363094,3.16,187.0,186.98,2.672]
[1730941363294,3.16,187.0,186.96,10.25463074]
[1730941363688,10.25463074,187.05,186.96,10.25463074]
[1730941363896,3.16,187.04,186.96,10.25463074]
[1730941364388,3.16,187.04,186.99,2.6719]
[1730941364793,2.6713,187.03,186.99,2.6719]
[1730941367801,3.16,187.03,186.96,10.25463074]
[1730941368304,2.6711,187.05,186.98,2.672]
[1730941368597,3.16,187.04,186.96,10.25463074]
[1730941368996,5.8312,187.04,187.0,2.6716]
[1730941370113,5.8312,187.04,186.94,1.2393]
[1730941370114,3.16,187.06,186.99,10.25463074]
[1730941370403,3.16,187.08,187.01,10.25463074]
[1730941370902,3.16,187.08,186.97,3.16]
[1730941370903,10.25463074,187.07,186.97,3.16]
[1730941371091,10.25463074,187.07,186.96,11.50963074]
[1730941371403,2.6712,187.04,186.96,11.50963074]
[1730941371713,11.50013074,187.07,186.96,10.25463074]
[1730941372002,2.6713,187.04,187.0,2.6717]
[1730941372705,11.50013074,187.07,186.96,10.25463074]
[1730941373301,2.6713,187.03,186.99,2.6718]
[1730941373602,1.2806,187.06,186.96,10.25463074]
[1730941374505,2.6713,187.03,186.96,10.25463074]
[1730941374700,3.16,187.03,186.99,10.25463074]
[1730941375102,3.16,187.03,187.01,2.6715]
[1730941376406,3.16,187.03,187.02,2.6715]
[1730941377005,3.16,187.06,186.99,10.25463074]
[1730941377497,3.16,187.06,187.04,2.6711]
[1730941377900,10.25463074,187.1,187.01,10.25463074]
[1730941377901,3.16,187.09,187.01,10.25463074]
[1730941378101,3.16,187.09,187.03,10.25463074]
[1730941378509,6.58,187.11,187.06,2.6708]
[1730941378809,3.16,187.13,187.03,10.25463074]
[1730941378999,3.16,187.13,186.99,1.2794]
[1730941379000,5.83,187.13,187.08,2.6705]
[1730941380416,10.25463074,187.12,187.01,11.56523074]
[1730941380602,3.16,187.13,187.01,11.56523074]
[1730941380603,10.25463074,187.1,187.01,11.56523074]
[1730941380810,2.6706,187.09,187.04,2.671]
[1730941381409,2.6705,187.09,187.04,2.671]
[1730941381618,3.16,187.08,187.04,2.671]
[1730941381909,5.8306,187.08,187.01,1.3106]
[1730941382115,3.16,187.08,187.01,1.3106]
[1730941382409,3.16,187.08,187.05,2.671]
[1730941382710,3.16,187.08,187.01,11.56523074]
[1730941383105,10.25463074,187.12,187.03,10.25463074]
[1730941383408,3.16,187.11,187.03,10.25463074]
[1730941383609,5.8302,187.11,187.03,10.25463074]
[1730941383815,3.16,187.11,187.03,10.25463074]
[1730941384409,5.8302,187.11,187.07,2.6707]
[1730941385014,3.16,187.11,187.03,10.25463074]
[1730941385219,3.16,187.11,187.08,2.6705]
[1730941385412,3.16,187.11,187.03,10.25463074]
[1730941385808,3.16,187.11,187.07,2.6706]
[1730941386414,3.16,187.11,187.03,10.25463074]
[1730941386615,3.16,187.11,187.08,2.6706]
[1730941387112,2.6701,187.12,187.03,10.25463074]
[1730941387113,3.16,187.13,187.09,2.6703]
[1730941387816,3.16,187.13,187.1,2.6703]
[1730941388019,13.41463074,187.14,187.06,10.25463074]
[1730941388310,3.8049,187.18,187.16,2.6693]
[1730941388311,1.3181,187.18,187.16,2.6693]
[1730941388517,3.16,187.19,187.16,2.6693]
[1730941388716,3.16,187.19,187.11,10.25463074]
[1730941388916,3.16,187.19,187.15,2.6695]
[1730941389217,5.8291,187.19,187.11,10.25463074]
[1730941389935,5.8291,187.19,187.15,2.6696]
[1730941390315,10.25463074,187.22,187.18,2.6692]
[1730941390512,13.41463074,187.22,187.18,2.6692]
[1730941391020,3.16,187.22,187.18,2.6692]
[1730941391426,5.8286,187.22,187.18,2.6692]
[1730941391618,5.8286,187.22,187.17,2.6693]
[1730941392319,11.57083074,187.27,187.17,10.25463074]
[1730941392618,3.16,187.26,187.17,10.25463074]
[1730941392819,10.25463074,187.21,187.08,1.2496]
[1730941393013,10.25463074,187.18,187.08,11.50423074]
[1730941393415,12.92383074,187.18,187.13,2.6698]
[1730941393717,10.25463074,187.18,187.08,11.50423074]
[1730941393923,12.92383074,187.18,187.14,2.6697]
[1730941394118,3.16,187.21,187.0,36.18527468]
[1730941394119,10.25463074,187.15,187.0,36.18527468]
[1730941394319,10.25463074,187.13,187.03,10.25463074]
[1730941394522,2.6705,187.09,187.05,2.671]
[1730941394730,10.25463074,187.11,187.05,2.671]
[1730941394922,2.6705,187.09,187.05,2.671]
[1730941395119,10.25463074,187.11,187.05,2.671]
[1730941395316,10.25463074,187.11,187.06,2.6708]
[1730941395517,1.3385,187.14,187.03,10.25463074]
[1730941395518,10.25463074,187.13,187.03,10.25463074]
[1730941395819,10.25463074,187.13,187.02,1.2435]
[1730941395820,3.16,187.17,187.05,10.25463074]
[1730941396315,3.16,187.17,187.08,10.25463074]
[1730941396919,13.41463074,187.17,187.05,10.25463074]
[1730941397119,10.25463074,187.12,187.03,11.49543074]
[1730941397325,2.6703,187.11,187.05,2.6709]
[1730941397622,16.04,187.27,187.08,10.25463074]
[1730941397821,2.6692,187.18,187.13,2.6698]
[1730941398619,3.22,187.2,187.1,10.25463074]
[1730941398819,3.22,187.2,187.14,2.6697]
[1730941399020,3.22,187.2,187.12,10.25463074]
[1730941399724,5.8889,187.2,187.14,2.6697]
[1730941399923,3.22,187.2,187.14,2.6697]
[1730941401123,5.8889,187.2,187.15,2.6695]
[1730941401329,3.22,187.2,187.12,10.25463074]
[1730941401718,3.22,187.2,187.17,2.6692]
[1730941402130,3.22,187.2,187.15,10.25463074]
[1730941402821,2.6685,187.23,187.18,2.6691]
[1730941403023,5.8685,187.23,187.18,2.6691]
[1730941403226,3.2,187.23,187.15,10.25463074]
[1730941403628,3.2,187.23,187.05,2.71255706]
[1730941403629,13.45463074,187.25,187.17,10.25463074]
[1730941403831,3.2,187.25,187.17,10.25463074]
[1730941404028,2.6684,187.24,187.14,10.25463074]
[1730941404227,2.6684,187.24,187.18,2.669]
[1730941404532,13.45463074,187.25,187.14,10.25463074]
[1730941404730,2.6688,187.21,187.16,2.6695]
[1730941405129,10.25463074,187.2,187.13,1.221]
[1730941405331,13.45463074,187.2,187.15,2.6695]
[1730941405836,16.12353074,187.2,187.15,2.6695]
[1730941406137,3.2,187.24,187.14,10.25463074]
[1730941406637,10.25463074,187.25,187.14,10.25463074]
[1730941406832,3.2,187.25,187.17,10.25463074]
[1730941407134,5.8682,187.25,187.21,2.6687]
[1730941408734,3.2,187.25,187.17,10.25463074]
[1730941408936,2.6683,187.24,187.19,2.6689]
[1730941409643,2.6686,187.23,187.18,2.6691]
[1730941411544,2.6686,187.23,187.19,2.669]
[1730941412040,13.45463074,187.25,187.14,10.25463074]
[1730941412236,2.6687,187.22,187.17,2.6693]
[1730941412443,13.45463074,187.25,187.14,10.25463074]
[1730941413346,2.6688,187.21,187.16,2.6694]
[1730941413947,2.6688,187.21,187.17,2.6693]
[1730941414240,10.25463074,187.23,187.12,11.56683074]
[1730941414642,2.669,187.2,187.16,2.6694]
[1730941415348,10.25463074,187.23,187.12,11.56683074]
[1730941415548,10.25463074,187.2,187.09,11.47313074]
[1730941415848,13.45463074,187.2,187.09,11.47313074]
[1730941416445,2.6698,187.14,187.09,3.8888]
[1730941416652,3.2,187.14,187.06,1.3297]
[1730941416850,3.2,187.14,187.05,10.25463074]
[1730941417043,2.6702,187.11,187.06,2.6708]
[1730941417244,10.25463074,187.13,187.02,11.50813074]
[1730941417946,2.6701,187.12,187.07,2.6706]
[1730941418151,10.25463074,187.15,187.05,10.25463074]
[1730941418345,3.2,187.15,187.07,10.25463074]
[1730941419145,13.45463074,187.15,187.05,10.25463074]
[1730941419750,2.6702,187.11,187.06,2.6708]
[1730941420342,5.8703,187.1,187.05,2.671]
[1730941420740,13.45463074,187.1,187.02,1.2535]
[1730941420955,13.45463074,187.1,187.0,10.25463074]
[1730941421645,13.45463074,187.1,187.03,2.6713]
[1730941421843,13.45463074,187.1,187.0,10.25463074]
[1730941422256,2.6709,187.07,187.02,2.6713]
[1730941422755,13.45463074,187.1,187.02,2.6713]
[1730941423054,2.6709,187.07,187.02,2.6713]
[1730941423249,2.6709,187.07,187.0,10.25463074]
[1730941423250,13.45463074,187.1,187.04,2.6711]
[1730941423454,13.45463074,187.1,187.0,10.25463074]
[1730941423652,2.6707,187.08,187.0,10.25463074]
[1730941423955,16.04,187.18,187.05,10.25463074]
[1730941424151,10.25463074,187.15,187.05,10.25463074]
[1730941424653,3.22,187.14,187.08,10.25463074]
[1730941425356,3.22,187.14,187.1,2.6702]
[1730941426054,5.8898,187.14,187.09,2.6705]
[1730941426254,3.22,187.14,187.08,10.25463074]
[1730941427048,3.22,187.14,187.1,2.6702]
[1730941428250,5.8898,187.14,187.1,2.6702]
[1730941428646,3.22,187.14,187.08,10.25463074]
[1730941428848,3.22,187.14,187.06,2.6707]
[1730941429058,3.22,187.14,187.05,10.25463074]
[1730941429059,13.47463074,187.14,187.05,10.25463074]
[1730941429462,13.47463074,187.14,187.03,10.25463074]
[1730941430560,2.6702,187.11,187.05,2.671]
[1730941430759,29.51463074,187.14,187.05,2.671]
[1730941430961,29.51463074,187.14,187.03,10.25463074]
[1730941431161,13.47463074,187.14,187.03,10.25463074]
[1730941431956,2.6702,187.12,187.07,2.6707]
[1730941432157,13.47463074,187.14,187.07,2.6707]
[1730941432363,10.25463074,187.14,187.07,2.6707]
[1730941432661,3.18,187.13,187.09,2.6703]
[1730941433552,3.18,187.13,187.08,10.25463074]
[1730941433553,2.6698,187.14,187.1,2.6703]
[1730941433864,3.18,187.15,187.1,10.25463074]
[1730941434062,3.18,187.15,187.11,2.6702]
[1730941434364,5.8496,187.15,187.11,2.6702]
[1730941434558,3.18,187.15,187.1,10.25463074]
[1730941434765,3.18,187.15,187.07,10.25463074]
[1730941435360,2.6697,187.14,187.09,2.6704]
[1730941435560,3.18,187.15,187.09,2.6704]
[1730941435864,3.18,187.15,187.07,10.25463074]
[1730941436065,2.6697,187.14,187.07,10.25463074]
[1730941436456,3.18,187.15,187.07,10.25463074]
[1730941436665,3.18,187.15,187.08,2.6706]
[1730941437161,2.6699,187.13,187.09,2.6704]
[1730941437466,3.18,187.15,187.07,10.25463074]
[1730941437650,2.6699,187.13,187.09,2.6704]
[1730941438760,2.6702,187.12,187.07,12.92533074]
[1730941438961,3.18,187.15,187.07,2.6707]
[1730941439868,2.6699,187.13,187.08,2.6706]
[1730941440270,3.18,187.15,187.07,10.25463074]
[1730941440462,5.8498,187.14,187.09,2.6704]
[1730941440660,5.8498,187.14,187.07,10.25463074]
[1730941441261,5.8498,187.14,187.09,2.6704]
[1730941441464,16.04,187.28,187.1,10.25463074]
[1730941441669,16.04,187.28,187.14,2.6697]
[1730941441670,10.25463074,187.22,187.14,2.6697]
[1730941441971,3.18,187.21,187.14,2.6697]
[1730941442164,2.669,187.19,187.14,2.6697]
[1730941442367,2.669,187.19,187.05,2.5692]
[1730941442368,3.18,187.21,187.06,1.3305]
[1730941442574,3.18,187.21,187.11,10.25463074]
[1730941442866,2.6691,187.19,187.14,2.6696]
[1730941443066,3.18,187.21,187.14,10.25463074]
[1730941443373,2.6686,187.22,187.17,2.6693]
[1730941443672,3.18,187.2,187.17,2.6693]
[1730941444068,2.6691,187.19,187.14,12.92433074]
[1730941444271,3.18,187.2,187.14,10.25463074]
[1730941444769,3.18,187.2,187.11,10.25463074]
[1730941445570,5.8489,187.2,187.13,10.25463074]
[1730941445872,3.18,187.2,187.13,10.25463074]
[1730941446267,3.18,187.2,187.16,10.25463074]
[1730941446472,3.18,187.23,187.16,10.25463074]
[1730941447874,3.18,187.23,187.18,10.25463074]
[1730941448073,1.2068,187.28,187.18,10.25463074]
[1730941448275,3.18,187.27,187.18,10.25463074]
[1730941448470,3.18,187.27,187.18,12.92373074]
[1730941448471,2.6685,187.23,187.18,12.92373074]
[1730941448678,10.25463074,187.26,187.18,12.92373074]
[1730941448879,10.25463074,187.26,187.15,10.25463074]
[1730941450173,2.6683,187.24,187.19,2.6689]
[1730941450370,2.6683,187.24,187.15,10.25463074]
[1730941450566,2.6683,187.24,187.19,2.6689]
[1730941452771,2.6682,187.25,187.2,2.6688]
[1730941455178,3.18,187.24,187.2,2.6688]
[1730941455681,3.18,187.24,187.21,2.6687]
[1730941455984,3.18,187.24,187.15,10.25463074]
[1730941456481,3.18,187.24,187.2,2.6689]
[1730941456669,5.8483,187.24,187.2,2.6689]
[1730941461676,1.2229,187.29,187.2,10.25463074]
[1730941461880,3.26,187.27,187.2,10.25463074]
[1730941462087,48.75463074,187.31,187.23,10.25463074]
[1730941462282,5.9275,187.3,187.25,2.6681]
[1730941462880,10.25463074,187.34,187.23,10.25463074]
[1730941463079,3.26,187.33,187.25,10.25463074]
[1730941463482,3.26,187.33,187.26,2.6679]
[1730941463483,2.6672,187.32,187.26,2.6679]
[1730941463878,10.25463074,187.3,187.2,10.25463074]
[1730941464272,3.26,187.33,187.2,10.25463074]
[1730941464273,10.25463074,187.31,187.2,10.25463074]
[1730941464881,10.25463074,187.31,187.23,2.6685]
[1730941465383,2.6678,187.28,187.23,2.6685]
[1730941466081,2.6676,187.3,187.2,10.25463074]
[1730941466387,3.26,187.3,187.2,10.25463074]
[1730941466789,3.26,187.3,187.24,2.6682]
[1730941467288,5.9276,187.3,187.24,2.6682]
[1730941467679,3.26,187.3,187.26,2.668]
[1730941468088,5.9275,187.3,187.2,12.91067338]
[1730941468284,3.26,187.3,187.23,2.6683]
[1730941468583,3.26,187.3,187.21,2.66431941]
[1730941468784,5.9275,187.3,187.23,2.6685]
[1730941468990,5.9275,187.3,187.2,10.25463074]
[1730941469373,3.26,187.3,187.2,10.25463074]
[1730941469575,2.6676,187.29,187.2,10.25463074]
[1730941469781,10.25463074,187.29,187.2,10.25463074]
[1730941469983,2.6678,187.28,187.22,2.6686]
[1730941470182,10.25463074,187.29,187.22,2.6686]
[1730941470687,10.25463074,187.29,187.18,10.25463074]
[1730941470989,10.25463074,187.26,187.16,3.26]
[1730941471186,10.25463074,187.26,187.17,2.6692]
[1730941471187,2.6684,187.24,187.17,2.6692]
[1730941471391,10.25463074,187.24,187.15,3.8156]
[1730941471689,10.25463074,187.24,187.17,2.6692]
[1730941471690,16.18303074,187.24,187.17,2.6692]
[1730941471881,13.51463074,187.24,187.17,2.6692]
[1730941472284,2.6685,187.23,187.17,2.6692]
[1730941472481,13.51463074,187.24,187.17,2.6692]
[1730941473483,2.6685,187.23,187.15,14.07023074]
[1730941473683,2.6685,187.23,187.18,2.6692]
[1730941474081,16.18293074,187.24,187.18,2.6692]
[1730941474278,5.9283,187.24,187.18,2.6692]
[1730941474689,3.26,187.24,187.18,2.6692]
[1730941474889,2.6686,187.22,187.16,2.6694]
[1730941475190,3.26,187.24,187.15,12.74373074]
[1730941475581,5.9284,187.24,187.19,2.669]
[1730941475783,3.26,187.24,187.19,2.669]
[1730941476186,3.26,187.24,187.15,12.74373074]
[1730941476187,3.26,187.24,187.18,10.25463074]
[1730941476491,3.26,187.27,187.2,10.25463074]
[1730941477280,2.6681,187.26,187.21,2.6687]
[1730941477480,3.26,187.27,187.21,2.6687]
[1730941477884,5.928,187.27,187.22,2.6686]
[1730941478283,2.4984,187.29,187.2,10.25463074]
[1730941478481,3.26,187.28,187.2,10.25463074]
[1730941478684,3.5,187.34,187.23,10.25463074]
[1730941478880,3.5,187.34,187.25,10.25463074]
[1730941479290,10.25463074,187.33,187.22,10.25463074]
[1730941479684,2.6675,187.3,187.22,10.25463074]
[1730941479884,10.25463074,187.33,187.22,10.25463074]
[1730941480783,2.6676,187.29,187.23,2.6685]
[1730941480989,10.25463074,187.3,187.23,2.6685]
[1730941481188,10.25463074,187.3,187.19,10.25463074]
[1730941481994,2.668,187.27,187.19,10.25463074]
[1730941483299,2.668,187.27,187.22,2.6686]
[1730941483993,3.5,187.28,187.19,10.25463074]
[1730941484192,10.25463074,187.25,187.18,2.6691]
[1730941484694,2.6685,187.23,187.19,2.669]
[1730941484887,1.3322,187.27,187.19,10.25463074]
[1730941485193,3.5,187.28,187.2,10.25463074]
[1730941485388,6.1678,187.28,187.16,3.95931106]
[1730941485588,6.1678,187.28,187.19,10.25463074]
[1730941485791,6.1678,187.28,187.23,2.6684]
[1730941486187,6.1678,187.28,187.16,1.2282]
[1730941486188,2.6681,187.26,187.16,1.2282]
[1730941486494,3.5,187.28,187.18,10.25463074]
[1730941487082,2.6679,187.27,187.18,10.25463074]
[1730941489296,2.6679,187.27,187.23,2.6684]
[1730941489487,6.1678,187.28,187.23,2.6684]
[1730941489689,6.1678,187.28,187.2,10.25463074]
[1730941490088,3.5,187.28,187.22,2.6685]
[1730941490284,3.5,187.28,187.2,10.25463074]
[1730941490997,3.5,187.28,187.24,2.6682]
[1730941491794,6.1675,187.3,187.23,10.25463074]
[1730941492102,2.6675,187.3,187.23,10.25463074]
[1730941492399,3.5,187.31,187.23,10.25463074]
[1730941493504,2.6676,187.29,187.25,2.668]
[1730941494002,6.1675,187.31,187.23,10.25463074]
[1730941494200,3.5,187.31,187.23,10.25463074]
[1730941494402,6.1674,187.31,187.26,2.6679]
[1730941494705,2.6674,187.31,187.23,10.25463074]
[1730941495894,2.6674,187.31,187.26,2.6679]
[1730941497298,2.6674,187.31,187.23,10.25463074]
[1730941497497,2.6674,187.31,187.27,2.6679]
[1730941499105,3.5,187.33,187.26,2.668]
[1730941499406,2.6675,187.3,187.23,10.25463074]
[1730941500703,2.6675,187.3,187.18,3.5]
[1730941501009,2.6675,187.3,187.23,10.25463074]
[1730941501405,9.22795202,187.3,187.26,6.56045202]
[1730941501711,6.56045202,187.3,187.26,6.56045202]
[1730941502702,6.56045202,187.3,187.26,9.22845202]
[1730941503006,6.56045202,187.3,187.26,2.668]
[1730941503502,6.56045202,187.28,187.24,2.6682]
[1730941503708,6.56045202,187.28,187.23,6.56045202]
[1730941503906,6.56045202,187.26,187.22,6.56045202]
[1730941504209,2.6681,187.26,187.22,6.56045202]
[1730941504505,6.56045202,187.31,187.25,6.56045202]
[1730941504707,2.6675,187.3,187.26,6.56045202]
[1730941505103,9.22795202,187.3,187.17,3.5]
[1730941505313,9.22795202,187.3,187.25,6.56045202]
[1730941506302,6.56045202,187.3,187.25,6.56045202]
[1730941506903,9.22795202,187.3,187.25,6.56045202]
[1730941507413,6.56045202,187.31,187.26,6.56045202]
[1730941508013,1.2138,187.36,187.26,6.56045202]
[1730941508216,6.56045202,187.35,187.18,4.04957248]
[1730941508416,9.22725202,187.35,187.3,9.22795202]
[1730941508721,6.56045202,187.34,187.3,6.56045202]
[1730941508917,6.56045202,187.31,187.23,3.72]
[1730941509108,6.56045202,187.29,187.19,3.72]
[1730941509420,6.56045202,187.29,187.24,6.56045202]
[1730941509718,9.22825202,187.28,187.23,2.6684]
[1730941509923,6.56045202,187.28,187.24,6.56045202]
[1730941510217,2.6683,187.24,187.16,1.2282]
[1730941510417,6.56045202,187.23,187.15,2.4891]
[1730941510616,6.56045202,187.23,187.18,6.56045202]
[1730941511212,6.56045202,187.23,187.19,6.56045202]
[1730941512030,9.22875202,187.24,187.2,6.56045202]
[1730941512923,12.94855202,187.26,187.21,6.56045202]
[1730941513229,3.72,187.26,187.23,6.56045202]
[1730941513821,3.72,187.26,187.15,2.4891]
[1730941514020,3.72,187.26,187.22,6.56045202]
[1730941515627,2.6682,187.25,187.21,6.56045202]
[1730941516031,10.28045202,187.26,187.21,6.56045202]
[1730941516233,2.6682,187.25,187.21,6.56045202]
[1730941516532,10.28045202,187.26,187.21,6.56045202]
[1730941517830,10.28045202,187.26,187.21,9.22915202]
[1730941517831,12.94845202,187.26,187.21,9.22915202]
[1730941518723,6.388,187.26,187.21,9.22915202]
[1730941518927,6.388,187.26,187.22,6.56045202]
[1730941519328,3.72,187.26,187.22,6.56045202]
[1730941519533,2.6678,187.28,187.24,6.56045202]
[1730941519834,7.78275202,187.29,187.24,6.56045202]
[1730941520030,1.2223,187.29,187.25,6.56045202]
[1730941520231,1.2223,187.29,187.25,9.22855202]
[1730941520431,2.6675,187.3,187.25,9.22855202]
[1730941520828,3.72,187.31,187.28,9.22815202]
[1730941521040,3.72,187.31,187.28,6.56045202]
[1730941521436,2.6672,187.33,187.3,6.56045202]
[1730941521640,3.72,187.35,187.3,6.56045202]
[1730941522137,2.6669,187.34,187.3,6.56045202]
[1730941522338,2.6669,187.34,187.28,6.56045202]
[1730941522841,2.6669,187.34,187.3,6.56045202]
[1730941523142,10.28045202,187.35,187.3,6.56045202]
[1730941523344,12.94725202,187.35,187.3,6.56045202]
[1730941523543,1.3293,187.39,187.33,6.56045202]
[1730941523834,1.3293,187.39,187.23,1.2594]
[1730941523835,6.4604931,187.51,187.38,6.56045202]
[1730941524036,6.4604931,187.51,187.31,2.72184437]
[1730941524037,6.56045202,187.44,187.31,2.72184437]
[1730941524340,6.56045202,187.44,187.39,6.56045202]
[1730941524839,6.56045202,187.43,187.37,6.56045202]
[1730941525237,6.56045202,187.43,187.39,6.56045202]
[1730941525238,2.6658,187.42,187.39,6.56045202]
[1730941526142,10.28045202,187.44,187.39,6.56045202]
[1730941526342,10.28045202,187.44,187.32,2.5796]
[1730941526343,10.28045202,187.44,187.4,6.56045202]
[1730941526527,10.28045202,187.44,187.32,2.5796]
[1730941526528,1.3203,187.49,187.43,6.56045202]
[1730941526734,3.96,187.51,187.46,6.56045202]
[1730941526930,3.96,187.51,187.32,2.5796]
[1730941526931,3.8912,187.5,187.47,6.56045202]
[1730941527129,3.96,187.51,187.47,6.56045202]
[1730941527334,3.96,187.51,187.46,10.2482485]